[Event "Swiss Championship 2024"]
[Site "Flims"]
[Date "2024.07.20"]
[Round "8.2"]
[White "Peng, Li Min"]
[Black "Baenziger, Fabian"]
[Result "1-0"]
[ECO "D20"]
[WhiteElo "2562"]
[BlackElo "2410"]
[Annotator "RC"]
[PlyCount "109"]
[EventDate "2024.07.10"]
[EventType "tourn"]
[EventCountry "SUI"]
[SourceTitle "playchess.com"]
[Source "ChessBase"]
[SourceQuality "1"]
[TimeControl "40/5400+30:1800+30"]

1. d4 {[%emt 0:00:03]} d5 {[%emt 0:00:17]} 2. c4 {[%emt 0:00:17]} dxc4 {[%emt 0:00:27]} 3. e4 {[%emt 0:00:05]} b5 {[%emt 0:00:24]} 4. a4 {[%emt 0:00:22]} c6 {[%emt 0:00:10]} 5. axb5 {[%emt 0:11:35]} cxb5 {[%emt 0:00:57]} 6. Nc3 {[%emt 0:00:03]} Qb6 {[%emt 0:00:13]} 7. b3 {[%emt 0:00:12]} e6 {[%emt 0:00:21]} 8. bxc4 {[%emt 0:04:50]} Bb4 {[%emt 0:00:28]} 9. Bd2 {[%emt 0:01:03]} bxc4 {[%emt 0:00:18]} 10. Bxc4 {[%emt 0:00:48]} Ne7 {[%emt 0:01:14]} 11. Nf3 {[%emt 0:02:59]} O-O {[%emt 0:00:53]} 12. O-O {[%emt 0:00:04]} a5 {[%emt 0:00:23]} 13. Re1 {[%emt 0:03:34]} Nd7 {[%emt 0:02:24]} 14. Na4 {[%emt 0:04:49]} Qd6 {[%emt 0:03:36]} 15. e5 {[%emt 0:00:06]} Qb8 {[%emt 0:08:34]} 16. Ng5 {[%emt 0:00:09]} Bxd2 {[%emt 0:15:06]} 17. Qxd2 {[%emt 0:00:06]} h6 {[%emt 0:00:04]} 18. Ne4 {[%emt 0:06:23]} Bb7 {[%emt 0:09:28]} 19. Bd3 {[%emt 0:15:24]} Bxe4 {[%emt 0:17:27]} 20. Bxe4 {[%emt 0:05:35]} Ra7 {[%emt 0:00:05]} 21. Re3 {[%emt 0:08:07]} Qb4 {[%emt 0:04:35]} 22. Qd1 {[%emt 0:00:12]} Nd5 {[%emt 0:04:51]} 23. Rg3 {[%emt 0:02:33]} N7b6 {[%emt 0:01:08]} 24. Nc5 {[%emt 0:05:51]} Nc3 {[%emt 0:05:48]} 25. Qg4 {[%emt 0:00:05]} f5 {[%emt 0:00:07]} 26. exf6 {[%emt 0:00:03]} Rxf6 {[%emt 0:00:04]} 27. Bd3 {[%emt 0:00:03]} Qb2 {[%emt 0:08:15]} 28. Rf1 {[%emt 0:00:09]} Re7 {[%emt 0:02:20]} 29. Ne4 {[%emt 0:04:26]} Nxe4 {[%emt 0:00:05]} 30. Qxe4 {[%emt 0:00:03]} Kf8 {[%emt 0:00:43]} 31. Qh7 {[%emt 0:04:30]} Ref7 {[%emt 0:00:15]} 32. Bg6 {[%emt 0:00:42]} Rxf2 {[%emt 0:00:24]} 33. Bxf7 {[%emt 0:00:07]} Rxf1+ {[%emt 0:00:02]} 34. Kxf1 {[%emt 0:00:05]} Qc1+ {[%emt 0:02:14]} 35. Ke2 {[%emt 0:00:03]} Qb2+ {[%emt 0:02:47]} 36. Kf3 {[%emt 0:00:06]} Qc3+ {[%emt 0:00:03]} 37. Kg4 {[%emt 0:00:09]} Qxd4+ {[%emt 0:00:03]} 38. Kh3 {[%emt 0:00:08]} Kxf7 {[%emt 0:00:01]} 39. Qg6+ {[%emt 0:01:30]} Ke7 {[%emt 0:00:53]} 40. Qxg7+ {[%emt 0:03:05]} Qxg7 {[%emt 0:00:35]} 41. Rxg7+ {[%emt 0:30:02]} Kd6 {[%emt 0:30:19]} 42. Ra7 {[%emt 0:00:17]} Nc4 {[%emt 0:00:38]} 43. Ra6+ {[%emt 0:01:33]} Kd5 {[%emt 0:04:23]} 44. g4 {[%emt 0:00:05]} Ke5 {[%emt 0:00:44]} 45. Kh4 {[%emt 0:00:31]} Kd5 {[%emt 0:00:39]} 46. Kg3 {[%emt 0:03:01]} Ke5 {[%emt 0:00:47]} 47. h4 {[%emt 0:00:08]} Kd5 {[%emt 0:04:42]} 48. Kf4 {[%emt 0:02:25]} e5+ {[%emt 0:00:04]} 49. Kg3 {[%emt 0:00:09]} Kd4 {[%emt 0:00:16]} 50. Rxh6 {[%emt 0:01:05]} e4 {[%emt 0:00:10]} 51. h5 {[%emt 0:10:25]} e3 {[%emt 0:01:54]} 52. Re6 {[%emt 0:00:21]} Ne5 {[%emt 0:00:24]} 53. h6 {[%emt 0:01:02]} e2 {[%emt 0:00:02]} 54. Rxe5 {[%emt 0:00:19]} Kxe5 {[%emt 0:00:03]} 55. Kf2 {[%emt 0:00:05]} 1-0

[Event "Swiss Championship 2024"]
[Site "Flims"]
[Date "2024.07.20"]
[Round "8.3"]
[White "Stijve, Theo"]
[Black "Georgiadis, Nico"]
[Result "1-0"]
[ECO "B51"]
[WhiteElo "2328"]
[BlackElo "2512"]
[Annotator "TA"]
[PlyCount "105"]
[EventDate "2024.07.10"]
[EventType "tourn"]
[EventCountry "SUI"]
[SourceTitle "playchess.com"]
[Source "ChessBase"]
[SourceQuality "1"]
[TimeControl "40/5400+30:1800+30"]

{[%evp 29,105,0,0,0,7,0,52,43,61,0,16,0,0,-17,11,14,81,92,102,98,88,84,149,164,162,152,143,54,200,194,270,268,235,209,237,191,211,190,222,174,255,144,144,140,145,163,164,153,164,164,149,153,158,170,170,162,308,243,360,385,367,383,368,331,525,525,611,596,959,959,4698,5716,12847,12842,12828,12821,6621,5105]} 1. e4 {[%emt 0:00:04]} c5 {[%emt 0:00:06]} 2. Nf3 {[%emt 0:00:07]} d6 {[%emt 0:00:09]} 3. Bb5+ {[%emt 0:00:07]} Nd7 {[%emt 0:00:07]} 4. d4 {[%emt 0:00:06]} cxd4 {[%emt 0:01:25]} 5. Nxd4 {[%emt 0:00:08]} Ngf6 {[%emt 0:00:13]} 6. O-O {[%emt 0:00:09] B51: Sicilian: Moscow Variation (3 Bb5+) without 3...Bd7.} a6 {[%emt 0:00:42]} 7. Bd3 {[%emt 0:00:13]} Nc5 {[%emt 0:00:17]} 8. Nc3 {[%emt 0:00:12]} e6 {[%emt 0:07:10]} 9. a4 {[%emt 0:00:14]} Be7 {[%emt 0:00:35]} 10. Re1 {[%emt 0:00:25]} Nxd3 {[%emt 0:00:42]} 11. cxd3 {[%emt 0:00:09]} Bd7 $146 {[%emt 0:06:26]} ({Predecessor:} 11... O-O 12. h3 h6 13. Be3 Bd7 14. a5 Qb8 15. Qf3 Qd8 16. Reb1 Rc8 17. Rc1 Re8 {½-½ Anokhin,Y (2429)-Ristea,T (2417) Champion's League 2021/B3 email}) 12. Be3 {[%emt 0:07:27]} b6 {[%emt 0:16:19]} 13. f4 {[%emt 0:03:48]} O-O {[%emt 0:00:46]} 14. Qf3 {[%emt 0:04:14]} Rc8 {[%emt 0:18:54]} 15. Rac1 {[%emt 0:04:53]} e5 {[%emt 0:13:01]} 16. Nc2 {[%emt 0:13:52]} exf4 {[%emt 0:03:04]} 17. Qxf4 {[%emt 0:04:18]} b5 {[%emt 0:03:54]} (17... Ng4 $11) 18. axb5 $14 {[%emt 0:02:58]} axb5 {[%emt 0:00:27]} 19. Nb4 {[%emt 0:03:52]} (19. h3 $1 $14) 19... Be6 {[%emt 0:01:21]} 20. Bd4 {[%emt 0:09:10]} (20. Nxb5 $2 Qa5 21. Na7 (21. Nxd6 $2 Rxc1 22. Rxc1 Qxb4 $19) (21. Nc6 $2 Rxc6 22. Nd4 Rxc1 $19) 21... Rxc1 (21... Qxb4 $2 22. Nxc8 Bxc8 23. h3 $19) 22. Rxc1 Qxb4 $19) 20... Ng4 {[%emt 0:09:09]} 21. Ra1 {[%emt 0:10:16]} (21. Nxb5 $5 Rxc1 (21... Bg5 22. Rxc8 Bxc8 23. Qxd6 $14) 22. Qxc1 $11 (22. Rxc1 $2 Bg5 $19)) 21... Bf6 {[%emt 0:02:55]} (21... Bg5 {keeps more tension.} 22. Qf3 Bf6 23. Bxf6 Qb6+) 22. Bxf6 $1 {[%emt 0:03:08]} Nxf6 {[%emt 0:03:38]} (22... Qb6+ $11 {keeps the balance.} 23. Kf1 (23. d4 Nxf6 24. Qd2 Rc4 $17) 23... Nxf6 (23... gxf6 $2 24. Nbd5 $18)) 23. Ra6 $16 {[%emt 0:01:39]} (23. Nxb5 $2 {loses.} Qb6+ 24. Qf2 Qxb5 $19) 23... Ne8 {[%emt 0:04:38]} 24. Nxb5 {[%emt 0:03:21]} Qd7 {[%emt 0:02:17]} 25. Nxd6 {[%emt 0:03:20]} Rd8 {[%emt 0:00:02]} (25... Rb8 $142 26. Nc6 Rxb2) 26. e5 $16 {[%emt 0:03:50]} Rb8 {[%emt 0:00:28]} 27. Qd4 {[%emt 0:02:59]} Nc7 {[%emt 0:02:16] [#]} 28. Rb6 {[%emt 0:01:47]} ({Better is} 28. Ra5 $1 $16) 28... Rxb6 {[%emt 0:00:54]} (28... Qa4 $1 $14 29. Qf2 Na8 30. Rxb8 Rxb8) 29. Qxb6 $18 {[%emt 0:00:08]} Nd5 {[%emt 0:00:05]} (29... h6 $142 30. Ra1 Bd5) 30. Nxd5 $18 {[%emt 0:02:30]} Bxd5 {[%emt 0:00:03]} 31. Qd4 {[%emt 0:00:28]} Qe6 {[%emt 0:00:40]} 32. Nf5 {[%emt 0:03:54]} Re8 {[%emt 0:00:48]} 33. b4 {[%emt 0:03:50]} h5 {[%emt 0:01:00]} 34. Ng3 {[%emt 0:00:52]} Rc8 {[%emt 0:01:53]} (34... f6 $142 35. Nxh5 fxe5) 35. Ne2 {[%emt 0:04:06]} ({White should try} 35. Nxh5 $18 {Nf4 is the strong threat.} Bb7 36. Nf4) 35... Rc2 {[%emt 0:00:51]} 36. Nf4 {[%emt 0:01:28]} Qg4 {[%emt 0:00:18]} 37. Qxd5 {[%emt 0:00:32]} Qxf4 {[%emt 0:00:03]} 38. Qa8+ {[%emt 0:01:20]} Kh7 {[%emt 0:00:04]} 39. Qe4+ {[%emt 0:00:09]} Qxe4 {[%emt 0:00:03]} 40. Rxe4 {[%emt 0:00:06]} ({Reject} 40. dxe4 $6 Rb2 $11) 40... Rb2 {[%emt 0:01:36]} 41. Kf1 {[%emt 0:06:55]} g5 {[%emt 0:01:15]} 42. h4 {[%emt 0:03:56]} gxh4 {[%emt 0:11:45]} (42... Kg6 {was called for.} 43. g3 gxh4 44. Rxh4 Kf5) 43. Rxh4 $18 {[%emt 0:00:15]} Kg6 {[%emt 0:00:03]} (43... Kg7 $142 44. Rxh5 Rxb4) 44. Rf4 $18 {[%emt 0:00:35]} Kg7 {[%emt 0:01:04]} 45. g3 {[%emt 0:06:14]} Kg6 {[%emt 0:00:21]} 46. Ke1 {[%emt 0:03:52]} Rg2 {[%emt 0:02:31]} (46... Kg7 {is a better defense.} 47. Kd1 Rg2) 47. b5 $18 {[%emt 0:01:09]} Rxg3 {[%emt 0:00:07]} 48. Kd2 {[%emt 0:00:08]} Rg2+ {[%emt 0:08:21]} 49. Kc3 {[%emt 0:00:40]} Rg1 {[%emt 0:00:04]} 50. Rb4 {[%emt 0:02:21]} Kf5 {[%emt 0:04:46]} 51. b6 {[%emt 0:00:28]} Rg8 {[%emt 0:00:05]} 52. b7 {[%emt 0:00:49]} Rb8 {[%emt 0:00:04]} 53. Kd4 {[%emt 0:00:16]} 1-0

[Event "Swiss Championship 2024"]
[Site "Flims"]
[Date "2024.07.20"]
[Round "8.4"]
[White "Wyss, Jonas"]
[Black "Klauser, Markus"]
[Result "0-1"]
[ECO "B06"]
[WhiteElo "2291"]
[BlackElo "2358"]
[Annotator "ChessBase"]
[PlyCount "66"]
[EventDate "2024.07.10"]
[EventType "tourn"]
[EventCountry "SUI"]
[SourceTitle "playchess.com"]
[Source "ChessBase"]
[SourceQuality "1"]
[TimeControl "40/5400+30:1800+30"]

1. e4 {[%emt 0:00:03]} g6 {[%emt 0:00:06]} 2. d4 {[%emt 0:00:27]} Bg7 {[%emt 0:00:06]} 3. Nc3 {[%emt 0:00:13]} d6 {[%emt 0:00:08]} 4. Be3 {[%emt 0:00:25]} c6 {[%emt 0:00:12]} 5. f4 {[%emt 0:03:44]} Nd7 {[%emt 0:01:54]} 6. Nf3 {[%emt 0:00:57]} Ngf6 {[%emt 0:01:49]} 7. h3 {[%emt 0:03:29]} b5 {[%emt 0:01:22]} 8. e5 {[%emt 0:12:08]} Nh5 {[%emt 0:04:05]} 9. g4 {[%emt 0:04:17]} Ng3 {[%emt 0:00:09]} 10. Rg1 {[%emt 0:00:09]} Nxf1 {[%emt 0:00:07]} 11. Rxf1 {[%emt 0:00:09]} Nb6 {[%emt 0:00:27]} 12. Nd2 {[%emt 0:20:47]} b4 {[%emt 0:14:44]} 13. Nce4 {[%emt 0:01:11]} a5 {[%emt 0:06:11]} 14. Qf3 {[%emt 0:04:31]} O-O {[%emt 0:07:03]} 15. O-O-O {[%emt 0:14:51]} Nd5 {[%emt 0:01:04]} 16. Bf2 {[%emt 0:05:51]} a4 {[%emt 0:08:55]} 17. Bg3 {[%emt 0:01:08]} Qb6 {[%emt 0:14:38]} 18. Nb1 {[%emt 0:01:56]} f5 {[%emt 0:01:32]} 19. gxf5 {[%emt 0:05:49]} Bxf5 {[%emt 0:00:39]} 20. Rfe1 {[%emt 0:00:57]} Rab8 {[%emt 0:07:08]} 21. exd6 {[%emt 0:01:45]} a3 {[%emt 0:02:11]} 22. dxe7 {[%emt 0:04:48]} axb2+ {[%emt 0:00:16]} 23. Kd2 {[%emt 0:00:07]} Rfe8 {[%emt 0:01:10]} 24. Bh4 {[%emt 0:04:22]} Rb7 {[%emt 0:06:56]} 25. Nc5 {[%emt 0:03:31]} Ra7 {[%emt 0:01:07]} 26. Re5 {[%emt 0:01:40]} Bxe5 {[%emt 0:02:56]} 27. fxe5 {[%emt 0:00:04]} Nxe7 {[%emt 0:05:36]} 28. Rg1 {[%emt 0:02:38]} Qd8 {[%emt 0:03:33]} 29. Qb3+ {[%emt 0:02:21]} Qd5 {[%emt 0:00:27]} 30. Qxd5+ {[%emt 0:00:38]} Nxd5 {[%emt 0:00:26]} 31. Nd3 {[%emt 0:00:30]} Rxa2 {[%emt 0:00:48]} 32. Rg3 {[%emt 0:00:30]} Ra1 {[%emt 0:00:38]} 33. Rg1 {[%emt 0:00:01]} Nc3 {[%emt 0:00:49]} 0-1

[Event "Swiss Championship 2024"]
[Site "Flims"]
[Date "2024.07.20"]
[Round "8.5"]
[White "Kurmann, Oliver"]
[Black "Georgiadis, Ioannis"]
[Result "1-0"]
[ECO "C50"]
[WhiteElo "2428"]
[BlackElo "2483"]
[Annotator "TA"]
[PlyCount "81"]
[EventDate "2024.07.10"]
[EventType "tourn"]
[EventCountry "SUI"]
[SourceTitle "playchess.com"]
[Source "ChessBase"]
[SourceQuality "1"]
[TimeControl "40/5400+30:1800+30"]

{[%evp 9,81,12,19,12,24,13,22,0,7,-7,-14,-20,-2,-20,0,-37,-36,-34,-29,-33,0,-21,14,0,0,0,-5,-12,0,0,156,158,158,153,155,108,115,95,90,93,97,-84,124,107,107,104,127,137,133,122,129,127,151,144,165,143,183,122,286,265,412,423,414,428,418,421,493,483,557,534,554,439,450,438]} 1. e4 {[%emt 0:00:03]} e5 {[%emt 0:00:08]} 2. Nf3 {[%emt 0:00:10]} Nc6 {[%emt 0:00:05]} 3. Bc4 {[%emt 0:00:10]} Nf6 {[%emt 0:00:29]} 4. d3 {[%emt 0:00:11]} Bc5 {[%emt 0:00:19]} 5. Nc3 {[%emt 0:00:14]} a6 {[%emt 0:00:36]} 6. Nd5 {[%emt 0:00:51]} h6 {[%emt 0:01:04]} 7. Be3 {[%emt 0:05:34]} d6 {[%emt 0:03:50]} 8. a3 {[%emt 0:00:18] Die Stellung ist ausgeglichen.} Be6 {[%emt 0:02:31]} 9. c3 {[%emt 0:38:37]} Bxe3 {[%emt 0:03:12]} 10. fxe3 {[%emt 0:00:48]} O-O {[%emt 0:03:44]} 11. O-O {[%emt 0:02:00]} Bxd5 {[%emt 0:01:16]} 12. exd5 {[%emt 0:00:10]} Ne7 {[%emt 0:00:14]} 13. e4 {[%emt 0:03:13]} Ng6 {[%emt 0:04:48]} 14. Kh1 {[%emt 0:00:09]} Qd7 {[%emt 0:05:38]} 15. Qd2 {[%emt 0:01:36]} Nh5 {[%emt 0:05:12]} 16. Bb3 {[%emt 0:01:50]} f5 {[%emt 0:10:50]} 17. exf5 {[%emt 0:01:03]} Qxf5 {[%emt 0:00:46]} 18. g3 {[%emt 0:07:34] Wehrt Ngf4 ab} Qg4 {[%emt 0:13:30]} 19. Qg2 {[%emt 0:00:19]} Ne7 $2 {[%emt 0:01:51] [#]} (19... Rae8 $11) 20. Nxe5 $1 $16 {[%emt 0:05:07][%mdl 512]} Qg5 {[%emt 0:06:17] [#]} (20... Nxg3+ $2 21. Qxg3 Qxg3 22. hxg3 $18) (20... Qc8 21. Nf3) 21. Nf3 {[%emt 0:00:29]} Qg6 {[%emt 0:01:41]} 22. Qe2 {[%emt 0:18:50]} (22. Nd4 $142) 22... Rae8 {[%emt 0:06:42]} 23. Nh4 {[%emt 0:03:59] Gegen Nf5 gerichtet.} (23. Qe6+ {vereinfacht} Kh8 24. Qxg6 Nxg6 25. Bc2) 23... Qg5 {[%emt 0:07:48] Droht ...Nf5 und aus.} 24. Qe6+ {[%emt 0:00:01]} (24. Rxf8+ {vereinfacht} Kxf8 25. Nf3 Qg4 26. Qf2) 24... Kh7 {[%emt 0:00:09][%cal Oh5g3] Und jetzt ...Nxg3+! wäre schön.} 25. Nf3 $2 {[%emt 0:01:38]} (25. Rxf8 $16 {hält den Druck.} Rxf8 26. Re1) 25... Qg6 {[%emt 0:02:18]} (25... Nxg3+ $1 $17 26. hxg3 Qxg3) 26. Qxg6+ {[%emt 0:00:15]} Nxg6 {[%emt 0:01:53]} 27. Nd4 $36 {[%emt 0:00:03][%mdl 2048] Weiss hat starke Initiative.} Kg8 {[%emt 0:03:56]} 28. Ne6 {[%emt 0:00:55]} Rxf1+ {[%emt 0:01:35]} 29. Rxf1 {[%emt 0:00:01]} Nf6 {[%emt 0:00:14]} 30. Kg2 {[%emt 0:04:38] Weiß steht aktiver.} ({Viel schlechter ist} 30. Nxc7 $6 Re2 $14) 30... Re7 {[%emt 0:00:36]} 31. d4 {[%emt 0:01:57]} Rd7 {[%emt 0:07:39]} 32. h3 {[%emt 0:03:06]} Ne7 {[%emt 0:01:51]} 33. Nf4 {[%emt 0:00:26]} (33. h4 $18) 33... g5 $2 {[%emt 0:02:44] Führt Schwarz ins Verderben.} (33... Nf5 $16) 34. Ne6 $18 {[%emt 0:00:24]} Nexd5 {[%emt 0:00:38] [#]} (34... Kf7 $142 35. c4 Nc8) 35. Nxc7 $1 {[%emt 0:00:37][%mdl 512]} Rxc7 {[%emt 0:00:58]} 36. Rxf6 {[%emt 0:00:01] KRB-KRN} Kg7 {[%emt 0:00:07]} 37. Rxd6 {[%emt 0:00:14]} ({Schlechter ist} 37. Bxd5 Kxf6 38. a4 Re7 $17) 37... Ne3+ {[%emt 0:00:02] Weiß steht klar auf Gewinn.} 38. Kf3 {[%emt 0:00:18]} Nf1 {[%emt 0:00:02]} 39. Bd5 {[%emt 0:00:47]} Re7 {[%emt 0:00:21]} 40. Be6 {[%emt 0:01:14]} Nd2+ {[%emt 0:00:22]} 41. Kg4 {[%emt 0:12:09] Gewichteter Fehlerwert: Weiß=0.22 (präzise) /Schwarz=0.38.  Verlustzug:     	---       	Schwarz=1     Fehler:       	Weiß=3     	Schwarz=3     Ungenau:       	Weiß=1     	Schwarz=2     OK:         	Weiß=15    	Schwarz=9     Bester:       	Weiß=2     	Schwarz=3     Brilliant:      	Weiß=1     	---} 1-0

[Event "Swiss Championship 2024"]
[Site "Flims"]
[Date "2024.07.21"]
[Round "9.1"]
[White "Georgiadis, Ioannis"]
[Black "Bogner, Sebastian"]
[Result "1-0"]
[ECO "D43"]
[WhiteElo "2483"]
[BlackElo "2547"]
[Annotator "TA"]
[PlyCount "59"]
[EventDate "2024.07.10"]
[EventType "tourn"]
[EventCountry "SUI"]
[SourceTitle "playchess.com"]
[Source "ChessBase"]
[SourceQuality "1"]
[TimeControl "40/5400+30:1800+30"]

{[%evp 14,59,8,0,5,0,2,6,0,7,27,20,35,43,14,25,39,36,43,34,38,37,21,21,25,30,70,56,62,55,75,68,131,135,122,109,142,133,206,203,196,186,581,554,456,359,1332,1252]} 1. d4 {[%emt 0:00:02]} d5 {[%emt 0:00:04]} 2. c4 {[%emt 0:00:49]} c6 {[%emt 0:00:07]} 3. Nf3 {[%emt 0:00:23]} Nf6 {[%emt 0:00:06]} 4. Nc3 {[%emt 0:00:55]} e6 {[%emt 0:02:44]} 5. Qd3 {[%emt 0:01:06]} dxc4 {[%emt 0:05:12]} 6. Qxc4 {[%emt 0:00:36]} b5 {[%emt 0:04:02]} 7. Qd3 {[%emt 0:00:11]} Nbd7 {[%emt 0:04:43]} 8. e4 {[%emt 0:03:28]} b4 {[%emt 0:01:15]} 9. Na4 {[%emt 0:00:10]} Bb7 {[%emt 0:01:41]} 10. Be3 {[%emt 0:02:51]} Qa5 {[%emt 0:27:05] The position is equal.} 11. b3 {[%emt 0:00:35]} c5 {[%emt 0:00:16]} 12. Nxc5 {[%emt 0:02:09]} Bxc5 {[%emt 0:03:32]} 13. dxc5 {[%emt 0:00:20]} Bxe4 {[%emt 0:01:29]} 14. Qd6 {[%emt 0:03:06] [#] And now c6 would win.} Rc8 {[%emt 0:02:05][%cal Oc8c6]} 15. Be2 {[%emt 0:05:32]} Rc6 {[%emt 0:05:01]} 16. Qg3 {[%emt 0:13:58]} O-O {[%emt 0:00:42][%cal Of6d5]} 17. Ne5 {[%emt 0:05:08]} Nxe5 {[%emt 0:09:02]} 18. Qxe5 {[%emt 0:00:25]} Bd5 {[%emt 0:07:08][%cal Of6d7]} (18... Bxg2 $2 {perishes.} 19. Rg1 Nd5 (19... Nd7 $2 20. Qd4 $18) 20. Bd4 $18 (20. Rxg2 f6 $18)) 19. Bd4 $36 {[%emt 0:02:01][%mdl 2048] Black is under pressure.} Ne8 {[%emt 0:01:11][%cal Bf6e8,Be8g7,Bg7e6][%mdl 32]} 20. O-O {[%emt 0:02:48]} f6 {[%emt 0:00:04]} 21. Qh5 {[%emt 0:00:45]} g6 {[%emt 0:05:56] [#]} 22. Qh4 {[%emt 0:01:19]} e5 {[%emt 0:00:38]} (22... g5 $14 23. Qh3 Ng7) 23. Be3 $16 {[%emt 0:00:23]} Ng7 {[%emt 0:01:40]} 24. Bc4 {[%emt 0:03:51]} Bxc4 {[%emt 0:03:30]} 25. Qxc4+ {[%emt 0:00:29]} Rf7 {[%emt 0:00:47]} (25... Kh8 $16) 26. Rfd1 {[%emt 0:02:51][%cal Oa2a3,Bf1d1,Bd1d5,Bd5d6,Bd6c6][%mdl 32]} Qc7 {[%emt 0:03:45]} 27. Rd5 {[%emt 0:00:43]} a5 $2 {[%emt 0:02:57]} (27... Nf5 {is tougher.} 28. Rad1 (28. Qxb4 Qb7 $18) 28... Kg7 29. Qxb4 h5) 28. Rad1 $18 {[%emt 0:00:43]} Ne6 {[%emt 0:00:03] Repels Rd8+} 29. Rd6 {[%emt 0:05:05]} Qc8 {[%emt 0:01:44]} (29... Nd4 30. Rxc6 Nxc6) 30. Rxc6 {[%emt 0:00:44] Weighted Error Value: White=0.06 (flawless) /Black=0.33.  Mistake:       	---       	Black=4      Inaccurate:     	---       	Black=2      OK:         	White=11    	Black=9      Best:        	White=5     	Black=1} 1-0

[Event "Swiss Championship 2024"]
[Site "Flims"]
[Date "2024.07.21"]
[Round "9.2"]
[White "Klauser, Markus"]
[Black "Kurmann, Oliver"]
[Result "0-1"]
[ECO "D02"]
[WhiteElo "2358"]
[BlackElo "2428"]
[Annotator "TA"]
[PlyCount "66"]
[EventDate "2024.07.10"]
[EventType "tourn"]
[EventCountry "SUI"]
[SourceTitle "playchess.com"]
[Source "ChessBase"]
[SourceQuality "1"]
[TimeControl "40/5400+30:1800+30"]

{[%evp 16,66,-14,-29,-29,-18,0,0,-1,-11,0,-24,-24,-51,-56,-52,-34,-84,-41,-62,-57,-61,-46,-67,-72,-50,-44,-84,-27,-28,-24,-27,-25,-45,-42,-199,-183,-176,-193,-210,-246,-529,-522,-690,-697,-999,-992,-1097,-589,-573,-570,-1021,-1014]} 1. d4 {[%emt 0:02:00]} Nf6 {[%emt 0:01:11]} 2. Nf3 {[%emt 0:00:09]} d5 {[%emt 0:01:19]} 3. Bf4 {[%emt 0:01:30]} c5 {[%emt 0:00:31]} 4. e3 {[%emt 0:03:00]} Nc6 {[%emt 0:00:31]} 5. c3 {[%emt 0:00:08]} Qb6 {[%emt 0:02:47]} 6. Qb3 {[%emt 0:00:52]} c4 {[%emt 0:00:27]} 7. Qc2 {[%emt 0:00:15]} Bf5 {[%emt 0:00:20]} 8. Qc1 {[%emt 0:00:06]} h6 {[%emt 0:14:45]} 9. h3 {[%emt 0:02:12]} e6 {[%emt 0:00:12]} 10. Nbd2 {[%emt 0:00:10]} Qd8 {[%emt 0:00:33]} 11. Be2 {[%emt 0:07:18]} b5 {[%emt 0:03:06] The position is equal.} 12. O-O {[%emt 0:07:30]} Bd6 {[%emt 0:09:34]} 13. Ne5 {[%emt 0:15:12]} Bxe5 {[%emt 0:05:33]} 14. Bxe5 {[%emt 0:02:51]} Nxe5 {[%emt 0:00:09]} 15. dxe5 {[%emt 0:00:03]} Nd7 {[%emt 0:00:05][%cal Bf6d7,Bd7c5,Bc5d3][%mdl 32]} 16. f4 {[%emt 0:00:28]} (16. a4 $15) 16... Nc5 {[%emt 0:00:15]} 17. Nf3 {[%emt 0:00:56]} Bd3 {[%emt 0:00:25] Black is more active.} 18. Bxd3 {[%emt 0:01:04]} Nxd3 {[%emt 0:00:14]} 19. Qd2 {[%emt 0:05:56]} O-O {[%emt 0:00:05]} 20. Nd4 {[%emt 0:00:15]} Qb6 {[%emt 0:10:25]} 21. Rf3 {[%emt 0:04:06]} f6 {[%emt 0:07:18]} (21... a5 $17) 22. exf6 $11 {[%emt 0:00:33]} Rxf6 {[%emt 0:00:02]} 23. Raf1 {[%emt 0:00:49]} Raf8 {[%emt 0:02:35]} 24. g4 {[%emt 0:02:17]} b4 {[%emt 0:10:59]} 25. h4 $2 {[%emt 0:01:10] [#] This move loses the game for White.} (25. cxb4 $15 Nxb4 26. Kh1) 25... bxc3 $19 {[%emt 0:02:10]} 26. bxc3 {[%emt 0:00:08]} e5 {[%emt 0:08:16]} 27. g5 {[%emt 0:09:50]} hxg5 {[%emt 0:03:12]} 28. hxg5 $2 {[%emt 0:07:45]} (28. fxg5 {was worth a try.} Rxf3 29. Nxf3) 28... Rg6 {[%emt 0:00:12] Black is clearly winning.} 29. Rg3 {[%emt 0:05:44]} exd4 {[%emt 0:01:56]} 30. f5 {[%emt 0:00:31]} dxe3 {[%emt 0:00:05]} 31. Qe2 {[%emt 0:00:50]} Qb8 {[%emt 0:05:14]} 32. Qxe3 {[%emt 0:01:11]} Rb6 {[%emt 0:01:26] aiming for ...Re8.} 33. Qf3 {[%emt 0:01:17] [#]} Rxf5 $3 {[%emt 0:01:27][%mdl 512] Weighted Error Value: White=0.87/Black=0.40.  Mistake:       	White=3     	Black=1      Inaccurate:     	White=5     	Black=1      OK:         	White=4     	Black=7      Best:        	---       	Black=3      Brilliant:      	---       	Black=1} 0-1